fUSD/lending_fUSD_20260614
["ID","MTS","AMOUNT","RATE_DAILY","PERIOD"]
[424978503,1781367062000,-217.15233878,0.00023793,2]
[424978501,1781367062000,-187.20084695,0.000236,2]
[424978498,1781367062000,-213.73642824,0.00023438,2]
[424978499,1781367062000,-1175.6641967,0.000235,2]
[424978496,1781367062000,-200.0,0.00023403,2]
[424978508,1781367062000,-260.4103811,0.00023793,2]
[424978565,1781367063000,-246.480548,0.00024658,2]
[424978556,1781367063000,-190.67576335,0.00024657,2]
[424978555,1781367063000,-300.0,0.00024657,2]
[424978548,1781367063000,-418.52236091,0.00024341,2]
[424978545,1781367063000,-187.36631917,0.00024324,2]
[424978544,1781367063000,-2020.9,0.00024324,2]
[424978551,1781367063000,-270.0455652,0.00024341,2]
[424978547,1781367063000,-272.93901,0.00024341,2]
[424978546,1781367063000,-225.18697532,0.00024341,2]
[424978549,1781367063000,-152.80013625,0.00024341,2]
[424978561,1781367063000,-246.480548,0.00024658,2]
[424978553,1781367063000,-10055.58894355,0.000246,2]
[424978562,1781367063000,-246.480548,0.00024658,2]
[424978567,1781367063000,-246.480548,0.00024658,2]
[424978564,1781367063000,-246.480548,0.00024658,2]
[424978563,1781367063000,-246.480548,0.00024658,2]
[424978557,1781367063000,-1368.22,0.00024658,2]
[424978558,1781367063000,-246.480548,0.00024658,2]
[424978560,1781367063000,-246.480548,0.00024658,2]
[424978566,1781367063000,-246.480548,0.00024658,2]
[424978569,1781367063000,-246.480548,0.00024658,2]
[424978568,1781367063000,-246.480548,0.00024658,2]
[424978550,1781367063000,-151.0,0.00024341,2]
[424978574,1781367063000,-515.819011,0.00024658,2]
[424978571,1781367063000,-515.819011,0.00024658,2]
[424978570,1781367063000,-515.819011,0.00024658,2]
[424978559,1781367063000,-246.480548,0.00024658,2]
[424978552,1781367063000,-504.0,0.00024442,8]
[424978528,1781367063000,-352.0,0.00024,2]
[424978543,1781367063000,-10055.58894355,0.000243,2]
[424978517,1781367063000,-921.73,0.00024,7]
[424978516,1781367063000,-10655.04352773,0.00024,14]
[424978520,1781367063000,-1259.30039744,0.00024,2]
[424978519,1781367063000,-500.0,0.00024,2]
[424978518,1781367063000,-3600.0,0.00024,2]
[424978515,1781367063000,-1041.46003059,0.00024,2]
[424978521,1781367063000,-11185.55922,0.00024,2]
[424978522,1781367063000,-911.0,0.00024,2]
[424978524,1781367063000,-1932.199582,0.00024,2]
[424978526,1781367063000,-523.0,0.00024,2]
[424978523,1781367063000,-172.0,0.00024,2]
[424978525,1781367063000,-2981.0,0.00024,2]
[424978527,1781367063000,-7110.0,0.00024,7]
[424978529,1781367063000,-1161.0,0.00024,2]
[424978531,1781367063000,-401.0,0.00024,2]
[424978539,1781367063000,-150.0,0.00024164,2]
[424978532,1781367063000,-397.0,0.00024,2]
[424978533,1781367063000,-471.0,0.00024,2]
[424978540,1781367063000,-10210.83,0.00024174,2]
[424978575,1781367063000,-515.819011,0.00024658,2]
[424978530,1781367063000,-427.0,0.00024,2]
[424978538,1781367063000,-296.46,0.0002411,2]
[424978536,1781367063000,-282.0,0.00024,2]
[424978535,1781367063000,-348.0,0.00024,2]
[424978537,1781367063000,-10055.58894355,0.000241,2]
[424978534,1781367063000,-1813.0,0.00024,2]
[424978541,1781367063000,-572.9,0.00024174,2]
[424978542,1781367063000,-3768.73796359,0.0002421,2]
[424978573,1781367063000,-515.819011,0.00024658,2]
[424978554,1781367063000,-233.5188934,0.00024612,2]
[424978579,1781367063000,-515.819011,0.00024658,2]
[424978609,1781367063000,-309.508817,0.00024658,2]
[424978610,1781367063000,-960.84198,0.00024658,2]
[424978612,1781367063000,-960.84198,0.00024658,2]
[424978611,1781367063000,-960.84198,0.00024658,2]
[424978607,1781367063000,-309.508817,0.00024658,2]
[424978613,1781367063000,-960.84198,0.00024658,2]
[424978623,1781367063000,-272.93901,0.00024889,2]
[424978617,1781367063000,-960.84198,0.00024658,2]
[424978622,1781367063000,-233.5188934,0.00024889,2]
[424978616,1781367063000,-960.84198,0.00024658,2]
[424978620,1781367063000,-613.01,0.00024716,7]
[424978615,1781367063000,-960.84198,0.00024658,2]
[424978619,1781367063000,-205.04995436,0.00024658,2]
[424978608,1781367063000,-309.508817,0.00024658,2]
[424978621,1781367063000,-10055.58894355,0.000248,2]
[424978614,1781367063000,-960.84198,0.00024658,2]
[424978626,1781367063000,-5091.7,0.00024991,7]
[424978630,1781367063000,-913.60333013,0.00025,2]
[424978629,1781367063000,-7253.15840449,0.00025,2]
[424978631,1781367063000,-4877.33019187,0.00025,2]
[424978634,1781367063000,-1358.33504513,0.00025,4]
[424978625,1781367063000,-280.03725111,0.00024889,2]
[424978627,1781367063000,-10055.58894355,0.00025,2]
[424978628,1781367063000,-167.51222713,0.00025,60]
[424978632,1781367063000,-1789172.19944215,0.00025,2]
[424978635,1781367063000,-246.480548,0.00025,2]
[424978572,1781367063000,-515.819011,0.00024658,2]
[424978633,1781367063000,-181.42217344,0.00025,2]
[424978618,1781367063000,-960.84198,0.00024658,2]
[424978605,1781367063000,-960.84198,0.00024658,2]
[424978624,1781367063000,-151.0,0.00024889,2]
[424978604,1781367063000,-960.84198,0.00024658,2]
[424978576,1781367063000,-515.819011,0.00024658,2]
[424978606,1781367063000,-960.84198,0.00024658,2]
[424978583,1781367063000,-177.977151,0.00024658,2]
[424978581,1781367063000,-515.819011,0.00024658,2]
[424978577,1781367063000,-515.819011,0.00024658,2]
[424978586,1781367063000,-177.977151,0.00024658,2]
[424978585,1781367063000,-177.977151,0.00024658,2]
[424978582,1781367063000,-1000.0,0.00024658,2]
[424978584,1781367063000,-177.977151,0.00024658,2]
[424978587,1781367063000,-177.977151,0.00024658,2]
[424978580,1781367063000,-515.819011,0.00024658,2]
[424978597,1781367063000,-309.508817,0.00024658,2]
[424978588,1781367063000,-177.977151,0.00024658,2]
[424978596,1781367063000,-309.508817,0.00024658,2]
[424978578,1781367063000,-515.819011,0.00024658,2]
[424978595,1781367063000,-309.508817,0.00024658,2]
[424978602,1781367063000,-309.508817,0.00024658,2]
[424978599,1781367063000,-309.508817,0.00024658,2]
[424978601,1781367063000,-309.508817,0.00024658,2]
[424978600,1781367063000,-309.508817,0.00024658,2]
[424978592,1781367063000,-177.977151,0.00024658,2]
[424978594,1781367063000,-177.977151,0.00024658,2]
[424978603,1781367063000,-309.508817,0.00024658,2]
[424978593,1781367063000,-177.977151,0.00024658,2]
[424978598,1781367063000,-309.508817,0.00024658,2]
[424978590,1781367063000,-177.977151,0.00024658,2]
[424978589,1781367063000,-177.977151,0.00024658,2]
[424978591,1781367063000,-177.977151,0.00024658,2]
[424978675,1781367064000,-309.508817,0.00025,2]
[424978676,1781367064000,-309.508817,0.00025,2]
[424978669,1781367064000,-1048.560609,0.00025,2]
[424978677,1781367064000,-309.508817,0.00025,2]
[424978686,1781367064000,-158.358052,0.00025,2]
[424978668,1781367064000,-1048.560609,0.00025,2]
[424978672,1781367064000,-362.79278831,0.00025,2]
[424978664,1781367064000,-177.977151,0.00025,2]
[424978663,1781367064000,-567.721526,0.00025,2]
[424978678,1781367064000,-960.84198,0.00025,2]
[424978667,1781367064000,-177.977151,0.00025,2]
[424978674,1781367064000,-151.0,0.00025,2]
[424978680,1781367064000,-960.84198,0.00025,2]
[424978679,1781367064000,-309.508817,0.00025,2]
[424978685,1781367064000,-151.0,0.00025,2]
[424978681,1781367064000,-960.84198,0.00025,2]
[424978683,1781367064000,-440.29825713,0.00025,2]
[424978684,1781367064000,-151.0,0.00025,2]
[424978687,1781367064000,-420.673382,0.00025,2]
[424978689,1781367064000,-1720.497988,0.00025,2]
[424978688,1781367064000,-409.0,0.00025,2]
[424978692,1781367064000,-1720.497988,0.00025,2]
[424978696,1781367064000,-180.1,0.00025,2]
[424978690,1781367064000,-1720.497988,0.00025,2]
[424978695,1781367064000,-365.89141084,0.00025,2]
[424978693,1781367064000,-479.15480245,0.00025,2]
[424978671,1781367064000,-1048.560609,0.00025,2]
[424978682,1781367064000,-960.84198,0.00025,2]
[424978666,1781367064000,-1048.560609,0.00025,2]
[424978636,1781367064000,-246.480548,0.00025,2]
[424978670,1781367064000,-177.977151,0.00025,2]
[424978694,1781367064000,-1831.0,0.00025,2]
[424978637,1781367064000,-246.480548,0.00025,2]
[424978639,1781367064000,-151.0,0.00025,2]
[424978641,1781367064000,-152.050253,0.00025,2]
[424978640,1781367064000,-151.0,0.00025,2]
[424978642,1781367064000,-151.0,0.00025,2]
[424978645,1781367064000,-173.310699,0.00025,2]
[424978648,1781367064000,-173.310699,0.00025,2]
[424978643,1781367064000,-151.0,0.00025,2]
[424978647,1781367064000,-173.310699,0.00025,2]
[424978644,1781367064000,-215.52974,0.00025,2]
[424978646,1781367064000,-173.310699,0.00025,2]
[424978638,1781367064000,-246.480548,0.00025,2]
[424978673,1781367064000,-1164.83864346,0.00025,2]
[424978650,1781367064000,-515.819011,0.00025,2]
[424978649,1781367064000,-151.0,0.00025,2]
[424978660,1781367064000,-567.721526,0.00025,2]
[424978651,1781367064000,-515.819011,0.00025,2]
[424978653,1781367064000,-515.819011,0.00025,2]
[424978652,1781367064000,-515.819011,0.00025,2]
[424978657,1781367064000,-3793.229884,0.00025,2]
[424978654,1781367064000,-2999.0,0.00025,2]
[424978655,1781367064000,-3793.229884,0.00025,2]
[424978659,1781367064000,-539.36885265,0.00025,2]
[424978656,1781367064000,-3793.229884,0.00025,2]
[424978658,1781367064000,-3793.229884,0.00025,2]
[424978662,1781367064000,-567.721526,0.00025,2]
[424978665,1781367064000,-177.977151,0.00025,2]
[424978661,1781367064000,-567.721526,0.00025,2]
[424978691,1781367064000,-1720.497988,0.00025,2]
[424978743,1781367064000,-2361.624063,0.00025644,2]
[424978698,1781367064000,-180.1,0.00025,2]
[424978725,1781367064000,-168.44,0.00025548,2]
[424978727,1781367064000,-921.73,0.000256,7]
[424978736,1781367064000,-2361.624063,0.00025644,2]
[424978728,1781367064000,-443.3,0.00025644,2]
[424978730,1781367064000,-2361.624063,0.00025644,2]
[424978729,1781367064000,-2361.624063,0.00025644,2]
[424978731,1781367064000,-2361.624063,0.00025644,2]
[424978738,1781367064000,-2361.624063,0.00025644,2]
[424978740,1781367064000,-2361.624063,0.00025644,2]
[424978744,1781367064000,-2361.624063,0.00025644,2]
[424978748,1781367064000,-232.0,0.00025852,2]
[424978746,1781367064000,-572.9,0.00025786,2]
[424978741,1781367064000,-2361.624063,0.00025644,2]
[424978737,1781367064000,-2361.624063,0.00025644,2]
[424978745,1781367064000,-10210.83,0.00025786,2]
[424978749,1781367064000,-276.28944246,0.00025981,2]
[424978747,1781367064000,-10055.58894355,0.000258,2]
[424978742,1781367064000,-2361.624063,0.00025644,2]
[424978758,1781367064000,-200.0,0.00025999,2]
[424978750,1781367064000,-621.78829552,0.00025983,2]
[424978757,1781367064000,-611.76351303,0.0002599,2]
[424978759,1781367064000,-4604.65455101,0.00026,2]
[424978697,1781367064000,-180.1,0.00025,2]
[424978752,1781367064000,-775.4783256,0.00025983,2]
[424978754,1781367064000,-272.93901,0.00025985,2]
[424978755,1781367064000,-151.0,0.00025985,2]
[424978756,1781367064000,-301.14337867,0.00025985,2]
[424978753,1781367064000,-251.11897888,0.00025985,2]
[424978739,1781367064000,-2361.624063,0.00025644,2]
[424978733,1781367064000,-2361.624063,0.00025644,2]
[424978751,1781367064000,-151.0,0.00025983,2]
[424978732,1781367064000,-2361.624063,0.00025644,2]
[424978734,1781367064000,-2361.624063,0.00025644,2]
[424978699,1781367064000,-595.046452,0.00025,2]
[424978701,1781367064000,-595.046452,0.00025,2]
[424978709,1781367064000,-504.0,0.00025247,8]
[424978711,1781367064000,-256.86464714,0.00025335,2]
[424978710,1781367064000,-10055.58894355,0.000253,2]
[424978700,1781367064000,-595.046452,0.00025,2]
[424978708,1781367064000,-3644.0,0.00025194,2]
[424978702,1781367064000,-595.046452,0.00025,2]
[424978706,1781367064000,-6076.0,0.00025194,2]
[424978703,1781367064000,-284.0,0.00025,2]
[424978705,1781367064000,-513.85017043,0.00025111,2]
[424978707,1781367064000,-1214.0,0.00025194,2]
[424978704,1781367064000,-213.73642824,0.00025078,2]
[424978712,1781367064000,-150.0,0.00025348,2]
[424978724,1781367064000,-290.3986294,0.00025437,2]
[424978713,1781367064000,-150.0,0.00025348,2]
[424978726,1781367064000,-10055.58894355,0.000256,2]
[424978722,1781367064000,-272.93901,0.00025437,2]
[424978716,1781367064000,-383.0,0.00025348,2]
[424978715,1781367064000,-3557.0,0.00025348,2]
[424978717,1781367064000,-1228.0,0.00025348,2]
[424978714,1781367064000,-150.0,0.00025348,2]
[424978723,1781367064000,-151.0,0.00025437,2]
[424978719,1781367064000,-270.85365871,0.00025397,2]
[424978720,1781367064000,-312.81431441,0.00025417,2]
[424978735,1781367064000,-2361.624063,0.00025644,2]
[424978718,1781367064000,-150.0,0.00025373,2]
[424978721,1781367064000,-242.15909246,0.00025437,2]
[424978781,1781367065000,-2000.0,0.00026987,2]
[424978784,1781367065000,-973.63,0.00026987,2]
[424978785,1781367065000,-151.0,0.00027,7]
[424978789,1781367065000,-151.0,0.00027,7]
[424978792,1781367065000,-151.0,0.00027,7]
[424978790,1781367065000,-151.0,0.00027,7]
[424978797,1781367065000,-151.0,0.00027,7]
[424978794,1781367065000,-151.0,0.00027,7]
[424978795,1781367065000,-151.0,0.00027,7]
[424978791,1781367065000,-151.0,0.00027,7]
[424978802,1781367065000,-151.0,0.00027,7]
[424978798,1781367065000,-151.0,0.00027,7]
[424978793,1781367065000,-151.0,0.00027,7]
[424978799,1781367065000,-151.0,0.00027,7]
[424978801,1781367065000,-151.0,0.00027,7]
[424978803,1781367065000,-151.0,0.00027,7]
[424978800,1781367065000,-151.0,0.00027,7]
[424978810,1781367065000,-151.0,0.00027,7]
[424978806,1781367065000,-151.0,0.00027,7]
[424978804,1781367065000,-151.0,0.00027,7]
[424978783,1781367065000,-2000.0,0.00026987,2]
[424978796,1781367065000,-151.0,0.00027,7]
[424978786,1781367065000,-151.0,0.00027,7]
[424978770,1781367065000,-272.93901,0.00026533,2]
[424978782,1781367065000,-2000.0,0.00026987,2]
[424978809,1781367065000,-151.0,0.00027,7]
[424978762,1781367065000,-205.04995436,0.00026027,2]
[424978760,1781367065000,-550.0,0.00026,2]
[424978761,1781367065000,-220.34099214,0.00026,2]
[424978763,1781367065000,-504.0,0.00026052,9]
[424978766,1781367065000,-2020.9,0.00026296,2]
[424978765,1781367065000,-500.0,0.00026295,2]
[424978767,1781367065000,-10055.58894355,0.000263,2]
[424978768,1781367065000,-27992.87439186,0.000264,2]
[424978771,1781367065000,-10055.58894355,0.000266,2]
[424978778,1781367065000,-10055.58894355,0.000269,2]
[424978769,1781367065000,-260.4103811,0.00026533,2]
[424978772,1781367065000,-171.63762554,0.00026641,2]
[424978764,1781367065000,-10055.58894355,0.000261,2]
[424978775,1781367065000,-213.73642824,0.00026719,2]
[424978774,1781367065000,-5091.7,0.00026654,7]
[424978777,1781367065000,-504.0,0.00026857,10]
[424978779,1781367065000,-2000.0,0.00026987,2]
[424978787,1781367065000,-151.0,0.00027,7]
[424978788,1781367065000,-151.0,0.00027,7]
[424978780,1781367065000,-2000.0,0.00026987,2]
[424978776,1781367065000,-247.0,0.00026809,10]
[424978773,1781367065000,-150.0,0.00026641,2]
[424978807,1781367065000,-151.0,0.00027,7]
[424978812,1781367065000,-151.0,0.00027,7]
[424978805,1781367065000,-151.0,0.00027,7]
[424978837,1781367065000,-151.0,0.00027,7]
[424978839,1781367065000,-151.0,0.00027,7]
[424978842,1781367065000,-151.0,0.00027,7]
[424978838,1781367065000,-151.0,0.00027,7]
[424978841,1781367065000,-151.0,0.00027,7]
[424978840,1781367065000,-151.0,0.00027,7]
[424978846,1781367065000,-151.0,0.00027,7]
[424978844,1781367065000,-151.0,0.00027,7]
[424978845,1781367065000,-151.0,0.00027,7]
[424978843,1781367065000,-151.0,0.00027,7]
[424978835,1781367065000,-151.0,0.00027,7]
[424978847,1781367065000,-151.0,0.00027,7]
[424978849,1781367065000,-151.0,0.00027,7]
[424978851,1781367065000,-250.0,0.00027,2]
[424978853,1781367065000,-1054.48065594,0.00027,2]
[424978857,1781367065000,-10055.58894355,0.000271,2]
[424978855,1781367065000,-270.0455652,0.00027081,2]
[424978856,1781367065000,-272.93901,0.00027081,2]
[424978854,1781367065000,-530.0,0.00027,2]
[424978848,1781367065000,-151.0,0.00027,7]
[424978858,1781367065000,-921.73,0.000271,7]
[424978808,1781367065000,-151.0,0.00027,7]
[424978852,1781367065000,-2000.0,0.00027,14]
[424978836,1781367065000,-151.0,0.00027,7]
[424978850,1781367065000,-190.0,0.00027,7]
[424978832,1781367065000,-151.0,0.00027,7]
[424978830,1781367065000,-151.0,0.00027,7]
[424978859,1781367065000,-150.0,0.00027123,2]
[424978814,1781367065000,-151.0,0.00027,7]
[424978811,1781367065000,-151.0,0.00027,7]
[424978815,1781367065000,-151.0,0.00027,7]
[424978817,1781367065000,-151.0,0.00027,7]
[424978820,1781367065000,-151.0,0.00027,7]
[424978818,1781367065000,-151.0,0.00027,7]
[424978819,1781367065000,-151.0,0.00027,7]
[424978813,1781367065000,-151.0,0.00027,7]
[424978816,1781367065000,-151.0,0.00027,7]
[424978822,1781367065000,-151.0,0.00027,7]
[424978824,1781367065000,-151.0,0.00027,7]
[424978821,1781367065000,-151.0,0.00027,7]
[424978833,1781367065000,-151.0,0.00027,7]
[424978834,1781367065000,-151.0,0.00027,7]
[424978831,1781367065000,-151.0,0.00027,7]
[424978829,1781367065000,-151.0,0.00027,7]
[424978827,1781367065000,-151.0,0.00027,7]
[424978825,1781367065000,-151.0,0.00027,7]
[424978828,1781367065000,-151.0,0.00027,7]
[424978826,1781367065000,-151.0,0.00027,7]
[424978823,1781367065000,-151.0,0.00027,7]
[424978884,1781367066000,-500.0,0.00027186,2]
[424978890,1781367066000,-200.0,0.00027186,2]
[424978886,1781367066000,-460.0,0.00027186,2]
[424978888,1781367066000,-200.0,0.00027186,2]
[424978887,1781367066000,-200.0,0.00027186,2]
[424978892,1781367066000,-200.0,0.00027186,2]
[424978889,1781367066000,-200.0,0.00027186,2]
[424978891,1781367066000,-200.0,0.00027186,2]
[424978885,1781367066000,-500.0,0.00027186,2]
[424978898,1781367066000,-200.0,0.00027186,2]
[424978893,1781367066000,-200.0,0.00027186,2]
[424978895,1781367066000,-200.0,0.00027186,2]
[424978897,1781367066000,-200.0,0.00027186,2]
[424978900,1781367066000,-200.0,0.00027186,2]
[424978899,1781367066000,-200.0,0.00027186,2]
[424978896,1781367066000,-200.0,0.00027186,2]
[424978902,1781367066000,-200.0,0.00027186,2]
[424978903,1781367066000,-200.0,0.00027186,2]
[424978883,1781367066000,-500.0,0.00027186,2]
[424978904,1781367066000,-200.0,0.00027186,2]
[424978894,1781367066000,-200.0,0.00027186,2]
[424978881,1781367066000,-266.84747052,0.00027123,2]
[424978867,1781367066000,-500.0,0.00027123,2]
[424978876,1781367066000,-500.0,0.00027123,2]
[424978907,1781367066000,-200.0,0.00027186,2]
[424978861,1781367066000,-500.0,0.00027123,2]
[424978860,1781367066000,-500.0,0.00027123,2]
[424978863,1781367066000,-500.0,0.00027123,2]
[424978862,1781367066000,-500.0,0.00027123,2]
[424978865,1781367066000,-500.0,0.00027123,2]
[424978864,1781367066000,-500.0,0.00027123,2]
[424978866,1781367066000,-500.0,0.00027123,2]
[424978868,1781367066000,-500.0,0.00027123,2]
[424978882,1781367066000,-500.0,0.00027186,2]
[424978870,1781367066000,-500.0,0.00027123,2]
[424978869,1781367066000,-500.0,0.00027123,2]
[424978873,1781367066000,-500.0,0.00027123,2]
[424978872,1781367066000,-500.0,0.00027123,2]
[424978875,1781367066000,-500.0,0.00027123,2]
[424978874,1781367066000,-500.0,0.00027123,2]
[424978877,1781367066000,-641.28107162,0.00027123,2]
[424978878,1781367066000,-250.0,0.00027123,2]
[424978879,1781367066000,-250.0,0.00027123,2]
[424978880,1781367066000,-250.0,0.00027123,2]
[424978871,1781367066000,-500.0,0.00027123,2]
[424978906,1781367066000,-200.0,0.00027186,2]
[424978901,1781367066000,-200.0,0.00027186,2]
[424978910,1781367066000,-200.0,0.00027186,2]
[424978930,1781367066000,-500.0,0.00027186,2]
[424978929,1781367066000,-500.0,0.00027186,2]
[424978935,1781367066000,-500.0,0.00027186,2]
[424978936,1781367066000,-500.0,0.00027186,2]
[424978938,1781367066000,-500.0,0.00027186,2]
[424978939,1781367066000,-500.0,0.00027186,2]
[424978937,1781367066000,-500.0,0.00027186,2]
[424978945,1781367066000,-500.0,0.00027186,2]
[424978941,1781367066000,-500.0,0.00027186,2]
[424978940,1781367066000,-500.0,0.00027186,2]
[424978944,1781367066000,-500.0,0.00027186,2]
[424978942,1781367066000,-500.0,0.00027186,2]
[424978946,1781367066000,-500.0,0.00027186,2]
[424978948,1781367066000,-500.0,0.00027186,2]
[424978947,1781367066000,-500.0,0.00027186,2]
[424978950,1781367066000,-500.0,0.00027186,2]
[424978951,1781367066000,-500.0,0.00027186,2]
[424978949,1781367066000,-500.0,0.00027186,2]
[424978953,1781367066000,-250.0,0.0002726,2]
[424978952,1781367066000,-151.43772562,0.00027188,2]
[424978905,1781367066000,-200.0,0.00027186,2]
[424978928,1781367066000,-500.0,0.00027186,2]
[424978934,1781367066000,-500.0,0.00027186,2]
[424978943,1781367066000,-500.0,0.00027186,2]
[424978933,1781367066000,-445.0,0.00027186,2]
[424978914,1781367066000,-200.0,0.00027186,2]
[424978932,1781367066000,-500.0,0.00027186,2]
[424978909,1781367066000,-200.0,0.00027186,2]
[424978911,1781367066000,-200.0,0.00027186,2]
[424978912,1781367066000,-200.0,0.00027186,2]
[424978913,1781367066000,-200.0,0.00027186,2]
[424978924,1781367066000,-500.0,0.00027186,2]
[424978915,1781367066000,-200.0,0.00027186,2]
[424978925,1781367066000,-500.0,0.00027186,2]
[424978916,1781367066000,-200.0,0.00027186,2]
[424978908,1781367066000,-200.0,0.00027186,2]
[424978918,1781367066000,-500.0,0.00027186,2]
[424978917,1781367066000,-169.0,0.00027186,2]
[424978920,1781367066000,-500.0,0.00027186,2]
[424978921,1781367066000,-500.0,0.00027186,2]
[424978919,1781367066000,-500.0,0.00027186,2]
[424978922,1781367066000,-500.0,0.00027186,2]
[424978923,1781367066000,-500.0,0.00027186,2]
[424978927,1781367066000,-500.0,0.00027186,2]
[424978931,1781367066000,-500.0,0.00027186,2]
[424978926,1781367066000,-500.0,0.00027186,2]
[424978995,1781367067000,-164.956631,0.00027355,7]
[424979001,1781367067000,-170.77488338,0.00027361,7]
[424978991,1781367067000,-154.83696726,0.00027351,7]
[424978983,1781367067000,-161.23414807,0.0002735,7]
[424978989,1781367067000,-186.97070873,0.00027351,7]
[424978982,1781367067000,-180.31071179,0.0002735,7]
[424978987,1781367067000,-169.71048777,0.00027351,7]
[424978979,1781367067000,-153.02057256,0.0002735,7]
[424978985,1781367067000,-155.29676333,0.00027351,7]
[424978997,1781367067000,-172.98460579,0.00027355,7]
[424978988,1781367067000,-150.60919327,0.00027351,7]
[424978994,1781367067000,-176.72531761,0.00027355,7]
[424979012,1781367067000,-150.0,0.00027397,2]
[424978992,1781367067000,-153.94915655,0.00027351,7]
[424978993,1781367067000,-168.36653565,0.00027355,7]
[424978996,1781367067000,-215.15904405,0.00027355,7]
[424978998,1781367067000,-160.40337138,0.00027355,7]
[424979000,1781367067000,-157.22312125,0.00027361,7]
[424978990,1781367067000,-196.79939097,0.00027351,7]
[424979003,1781367067000,-168.88387688,0.00027361,7]
[424979002,1781367067000,-153.72249579,0.00027361,7]
[424979011,1781367067000,-150.0,0.00027397,2]
[424979004,1781367067000,-215.54484065,0.00027361,7]
[424979006,1781367067000,-151.0,0.0002739,2]
[424978984,1781367067000,-157.95380618,0.00027351,7]
[424978999,1781367067000,-169.7955148,0.00027355,7]
[424978986,1781367067000,-169.64646136,0.00027351,7]
[424978958,1781367067000,-250.0,0.0002726,2]
[424978980,1781367067000,-162.17728239,0.0002735,7]
[424979005,1781367067000,-4190.7939796,0.0002739,2]
[424978954,1781367067000,-250.0,0.0002726,2]
[424978957,1781367067000,-250.0,0.0002726,2]
[424978955,1781367067000,-250.0,0.0002726,2]
[424978956,1781367067000,-250.0,0.0002726,2]
[424978959,1781367067000,-250.0,0.0002726,2]
[424978964,1781367067000,-152.6595983,0.0002735,7]
[424978968,1781367067000,-166.98780233,0.0002735,7]
[424978960,1781367067000,-163.222,0.0002726,120]
[424978965,1781367067000,-188.20605803,0.0002735,7]
[424978962,1781367067000,-214.87517331,0.0002735,7]
[424978961,1781367067000,-173.53716631,0.0002735,7]
[424978963,1781367067000,-159.68142339,0.0002735,7]
[424978966,1781367067000,-223.28827826,0.0002735,7]
[424978967,1781367067000,-151.0160782,0.0002735,2]
[424978970,1781367067000,-249.73010774,0.0002735,7]
[424978969,1781367067000,-169.52274766,0.0002735,7]
[424978975,1781367067000,-203.18524185,0.0002735,7]
[424978971,1781367067000,-161.15053119,0.0002735,7]
[424978978,1781367067000,-155.30473607,0.0002735,7]
[424978973,1781367067000,-173.73291154,0.0002735,7]
[424978976,1781367067000,-275.86091254,0.0002735,7]
[424978977,1781367067000,-196.52652662,0.0002735,5]
[424978972,1781367067000,-172.0498603,0.0002735,7]
[424978974,1781367067000,-202.85887372,0.0002735,7]
[424978981,1781367067000,-180.44788057,0.0002735,7]